bitfinex/quotes_SOLUSD_20251117
["timestamp","ask_amount","ask_price","bid_price","bid_amount"]
[1763351732980,0.77,140.45,140.41,3.56984888]
[1763351733291,0.2,140.45,140.4,25.50104888]
[1763351733487,0.57,140.44,140.41,0.72]
[1763351733792,0.77,140.45,140.41,0.72]
[1763351735371,0.2,140.45,140.42,2.84984888]
[1763351735676,0.2,140.45,140.43,0.72]
[1763351737395,0.2,140.45,140.41,2.84984888]
[1763351737603,0.77,140.45,140.41,0.72]
[1763351737778,0.2,140.45,140.4,25.50104888]
[1763351738103,0.57,140.44,140.4,23.3712]
[1763351738671,3.61984888,140.45,140.41,0.72]
[1763351738895,3.61984888,140.45,140.4,0.72]
[1763351738896,3.41984888,140.44,140.4,0.72]
[1763351739191,12.63867657,140.43,140.38,0.72]
[1763351739395,2.84984888,140.42,140.38,0.72]
[1763351739690,3.41984888,140.42,140.38,0.72]
[1763351740611,0.57,140.41,140.36,2.84984888]
[1763351740898,2.84984888,140.4,140.36,0.72]
[1763351741268,3.41984888,140.4,140.36,0.72]
[1763351741793,2.84984888,140.4,140.36,0.72]
[1763351742087,3.41984888,140.39,140.35,0.72]
[1763351742461,3.41984888,140.39,140.33,22.6512]
[1763351742462,3.41984888,140.38,140.33,3.56984888]
[1763351742667,3.41984888,140.38,140.34,0.72]
[1763351742966,2.84984888,140.38,140.34,0.72]
[1763351743166,0.57,140.39,140.34,0.72]
[1763351743394,2.84984888,140.38,140.34,0.72]
[1763351744693,3.41984888,140.38,140.34,0.72]
[1763351745305,2.84984888,140.38,140.34,0.72]
[1763351745468,0.57,140.38,140.34,3.56984888]
[1763351746603,0.57,140.38,140.34,0.72]
[1763351746803,0.57,140.38,140.34,3.56984888]
[1763351750606,0.57,140.38,140.35,0.72]
[1763351753242,2.84984888,140.39,140.35,0.72]
[1763351753375,3.41984888,140.39,140.35,0.72]
[1763351754085,0.57,140.38,140.35,0.72]
[1763351755107,0.57,140.38,140.33,2.84984888]
[1763351755289,3.41984888,140.38,140.34,0.72]
[1763351755478,3.41984888,140.39,140.34,3.56984888]
[1763351755879,0.57,140.38,140.35,0.72]
[1763351756692,0.57,140.38,140.33,2.84984888]
[1763351756912,0.57,140.38,140.34,0.72]
[1763351761297,2.84984888,140.39,140.34,3.56984888]
[1763351761513,3.41984888,140.39,140.34,3.56984888]
[1763351761797,3.41984888,140.39,140.35,0.7]
[1763351762001,10.35882769,140.42,140.37,2.84984888]
[1763351762320,0.57,140.42,140.37,2.84984888]
[1763351762626,3.41984888,140.42,140.38,0.7]
[1763351763005,0.57,140.41,140.38,0.7]
[1763351763726,114.68882769,140.44,140.38,0.7]
[1763351763727,2.84984888,140.43,140.38,0.7]
[1763351764104,3.41984888,140.43,140.38,3.54984888]
[1763351764305,0.57,140.42,140.38,3.54984888]
[1763351764725,0.57,140.42,140.38,0.7]
[1763351766733,3.41984888,140.42,140.38,0.7]
[1763351767112,0.57,140.41,140.38,0.7]
[1763351767311,3.41984888,140.42,140.38,0.7]
[1763351767631,2.84984888,140.42,140.38,0.7]
[1763351767823,3.41984888,140.42,140.38,0.7]
[1763351769837,2.84984888,140.42,140.38,0.7]
[1763351770134,137.91002769,140.44,140.38,0.7]
[1763351770135,3.41984888,140.43,140.38,0.7]
[1763351770505,2.84984888,140.43,140.38,3.54984888]
[1763351770706,12.83867657,140.45,140.4,2.84984888]
[1763351771239,0.2,140.45,140.41,3.54984888]
[1763351771614,0.2,140.45,140.42,0.7]
[1763351773933,3.04984888,140.45,140.42,0.7]
[1763351774640,0.2,140.45,140.42,0.7]
[1763351777518,3.04984888,140.45,140.42,0.7]
[1763351778016,0.2,140.45,140.42,0.7]
[1763351779549,0.2,140.45,140.42,3.54984888]
[1763351779723,0.2,140.45,140.43,2.84984888]
[1763351779925,0.2,140.45,140.44,3.50984888]
[1763351780152,0.2,140.46,140.44,3.50984888]
[1763351780349,0.2,140.46,140.45,3.50984888]
[1763351780952,0.2,140.46,140.45,2.48103151]
[1763351789652,0.2,140.46,140.41,11.16765675]
[1763351789856,0.87,140.46,140.42,2.48103151]
[1763351790542,0.2,140.46,140.43,1.82103151]
[1763351790719,0.2,140.46,140.43,2.53103151]
[1763351790924,0.2,140.46,140.44,0.71]
[1763351796057,2.52103151,140.45,140.41,0.71]
[1763351796551,2.52103151,140.45,140.41,2.53103151]
[1763351797654,1.82103151,140.45,140.41,0.71]
[1763351797831,2.52103151,140.44,140.41,0.71]
[1763351798560,2.52103151,140.44,140.39,24.47223151]
[1763351798744,2.52103151,140.44,140.4,0.71]
[1763351801229,1.82103151,140.44,140.39,24.47223151]
[1763351801434,2.52103151,140.43,140.39,0.71]
[1763351802946,2.52103151,140.44,140.39,2.53103151]
[1763351803747,0.7,140.44,140.4,1.82103151]
[1763351803945,2.52103151,140.44,140.4,0.71]
[1763351804147,1.82103151,140.43,140.4,0.71]
[1763351804947,2.52103151,140.44,140.4,0.71]
[1763351809756,1.82103151,140.44,140.4,0.71]
[1763351809966,1.82103151,140.42,140.37,25.18223151]
[1763351810145,1.82103151,140.4,140.35,0.71]
[1763351810466,1.82103151,140.38,140.32,0.71]
[1763351810648,1.82103151,140.38,140.33,1.82103151]
[1763351811045,2.52103151,140.38,140.34,0.71]
[1763351813375,1.82103151,140.39,140.34,2.53103151]
[1763351813874,2.52103151,140.39,140.35,0.71]
[1763351815353,1.82103151,140.39,140.35,0.71]
[1763351815771,2.52103151,140.39,140.35,0.71]
[1763351816280,1.82103151,140.4,140.35,2.53103151]
[1763351816657,1.82103151,140.4,140.36,0.71]
[1763351817559,2.52103151,140.4,140.36,0.71]
[1763351817759,1.82103151,140.4,140.36,0.71]
[1763351819175,1.82103151,140.42,140.37,1.82103151]
[1763351819564,1.82103151,140.42,140.38,0.71]
[1763351820077,2.52103151,140.42,140.38,0.71]
[1763351820673,1.82103151,140.41,140.38,0.71]
[1763351821585,2.52103151,140.41,140.38,0.71]
[1763351822074,1.82103151,140.41,140.38,0.71]
[1763351823886,0.7,140.42,140.38,0.71]
[1763351824185,2.52103151,140.42,140.38,0.71]
[1763351824481,1.82103151,140.41,140.38,0.71]
[1763351828196,0.7,140.42,140.38,0.71]
[1763351828390,1.82103151,140.41,140.38,0.71]
[1763351828861,2.52103151,140.42,140.38,0.71]
[1763351833676,0.7,140.41,140.38,0.71]
[1763351833879,2.52103151,140.42,140.38,0.71]
[1763351835879,1.82103151,140.41,140.38,0.71]
[1763351836284,0.7,140.42,140.38,0.71]
[1763351836488,1.82103151,140.41,140.38,0.71]
[1763351836900,2.51103151,140.41,140.38,0.71]
[1763351837699,1.82103151,140.41,140.38,0.71]
[1763351838004,2.51103151,140.42,140.38,0.71]
[1763351840789,2.84903574,140.42,140.38,0.71]
[1763351841101,3.53903574,140.42,140.38,0.71]
[1763351842699,2.84903574,140.4,140.36,0.66]
[1763351842901,3.53903574,140.41,140.36,0.66]
[1763351843203,3.53903574,140.4,140.36,0.66]
[1763351843401,3.53903574,140.4,140.34,8.80330435]
[1763351843572,3.53903574,140.39,140.35,0.66]
[1763351844083,0.69,140.38,140.35,0.66]
[1763351844291,3.53903574,140.38,140.35,0.66]
[1763351845091,3.53903574,140.41,140.36,2.84903574]
[1763351845312,0.69,140.43,140.38,2.84903574]
[1763351845485,3.53903574,140.43,140.38,2.84903574]
[1763351845682,3.53903574,140.44,140.39,3.50903574]
[1763351845988,23.3412,140.44,140.39,0.66]
[1763351846301,0.69,140.44,140.4,3.50903574]
[1763351846506,3.53903574,140.45,140.4,3.50903574]
[1763351846804,3.53903574,140.45,140.41,0.66]
[1763351846805,2.84903574,140.45,140.41,0.66]
[1763351846997,0.69,140.44,140.41,0.66]
[1763351848179,3.53903574,140.45,140.41,0.66]
[1763351848794,0.69,140.44,140.41,0.66]
[1763351851287,3.53903574,140.44,140.41,0.66]
[1763351855312,3.53903574,140.44,140.4,0.7]
[1763351855921,3.53903574,140.43,140.38,0.7]
[1763351856205,2.84903574,140.41,140.37,0.7]
[1763351856404,2.84903574,140.4,140.37,0.7]
[1763351856797,3.53903574,140.41,140.37,0.7]
[1763351858189,0.69,140.4,140.37,0.7]
[1763351859312,3.53903574,140.4,140.35,0.7]
[1763351859492,3.53903574,140.4,140.34,28.60546861]
[1763351859493,2.84903574,140.39,140.36,0.7]
[1763351859691,3.53903574,140.39,140.36,0.7]
[1763351860604,2.84903574,140.4,140.36,0.7]
[1763351861309,3.53903574,140.4,140.36,0.7]
[1763351873536,0.69,140.4,140.36,0.7]
[1763351873705,0.69,140.42,140.38,2.84903574]
[1763351873909,3.53903574,140.42,140.38,0.7]
[1763351874733,3.53903574,140.41,140.38,0.7]
[1763351874924,2.84903574,140.41,140.38,0.7]
[1763351875120,3.53903574,140.4,140.37,0.7]
[1763351875338,2.84903574,140.39,140.35,0.7]
[1763351875510,3.53903574,140.39,140.35,0.7]
[1763351875709,0.69,140.4,140.35,0.7]
[1763351876033,2.84903574,140.39,140.35,0.7]
[1763351876537,3.53903574,140.39,140.35,0.7]
[1763351878826,2.84903574,140.39,140.35,0.7]
[1763351879030,3.53903574,140.39,140.35,0.7]
[1763351880041,3.53903574,140.39,140.35,3.54903574]
[1763351880042,0.69,140.39,140.35,3.54903574]
[1763351880411,3.54903574,140.41,140.35,3.54903574]
[1763351880617,3.54903574,140.41,140.36,3.50903574]
[1763351880834,3.54903574,140.41,140.37,0.66]
[1763351881746,0.7,140.4,140.37,0.66]
[1763351882543,2.84903574,140.42,140.37,3.50903574]
[1763351882739,3.54903574,140.43,140.38,3.50903574]
[1763351882930,2.84903574,140.43,140.38,3.50903574]
[1763351883128,3.54903574,140.43,140.39,0.66]
[1763351883626,26.20023574,140.44,140.39,0.66]
[1763351884527,2.84903574,140.43,140.39,0.66]
[1763351885728,2.84903574,140.44,140.39,3.50903574]
[1763351885933,3.54903574,140.45,140.4,3.50903574]
[1763351886333,3.54903574,140.45,140.41,0.66]
[1763351887749,0.2,140.46,140.42,2.84903574]
[1763351887928,0.2,140.46,140.43,2.84903574]
[1763351888128,0.2,140.46,140.42,2.84903574]
[1763351888623,0.2,140.46,140.43,0.66]
[1763351892735,0.9,140.46,140.43,0.66]
[1763351893048,3.74903574,140.46,140.43,0.66]
[1763351893241,3.04903574,140.46,140.43,0.66]
[1763351894345,3.74903574,140.46,140.41,2.84903574]
[1763351894545,2.84903574,140.44,140.41,0.66]
[1763351894749,3.74903574,140.46,140.42,0.66]
[1763351897050,3.70903574,140.46,140.42,0.66]
[1763351899057,0.86,140.46,140.42,3.50903574]
[1763351899358,3.70903574,140.46,140.42,0.66]
[1763351899854,3.04903574,140.46,140.43,0.71]
[1763351900044,0.2,140.46,140.43,0.71]
[1763351900243,0.86,140.46,140.43,0.71]
[1763351900953,0.2,140.46,140.43,0.71]
[1763351901252,0.2,140.46,140.44,1.82182077]
[1763351901644,0.2,140.46,140.45,0.71]
[1763351904433,0.2,140.46,140.45,2.53182077]
[1763351904937,0.2,140.46,140.45,0.71]
[1763351906063,0.2,140.46,140.45,2.53182077]
[1763351906635,0.2,140.46,140.45,0.71]
[1763351914486,0.2,140.46,140.45,2.53182077]
[1763351914645,0.2,140.46,140.45,0.71]
[1763351915061,0.2,140.46,140.45,2.53182077]
[1763351916950,0.2,140.46,140.45,25.18302077]
[1763351917150,0.2,140.47,140.45,32.47030385]
[1763351917352,0.2,140.48,140.46,9.79910385]
[1763351917571,0.2,140.48,140.47,1.82182077]
[1763351917778,0.2,140.48,140.47,2.51182077]
[1763351919775,0.2,140.49,140.48,22.6512]
[1763351920084,0.2,140.54,140.49,3.64364154]
[1763351920262,0.2,140.54,140.52,22.6512]
[1763351920462,0.2,140.54,140.53,24.47302077]
[1763351920773,0.2,140.54,140.53,25.16302077]
[1763351925576,0.2,140.54,140.53,23.3412]
[1763351925769,0.2,140.54,140.53,25.16302077]
[1763351927980,0.2,140.54,140.53,24.47302077]
[1763351929172,0.86,140.54,140.53,24.47302077]
[1763351929775,0.86,140.54,140.52,1.82182077]
[1763351929975,0.66,140.53,140.52,1.82182077]
[1763351938295,0.66,140.53,140.49,23.3412]
[1763351938479,0.66,140.53,140.52,1.82182077]
[1763351939365,0.2,140.54,140.52,1.82182077]
[1763351939562,0.86,140.54,140.52,1.82182077]
[1763351940393,0.66,140.53,140.52,1.82182077]
[1763351943605,0.2,140.54,140.52,1.82182077]
[1763351943808,0.86,140.54,140.53,1.82182077]
[1763351944029,0.86,140.54,140.52,1.82182077]
[1763351944190,0.66,140.53,140.52,1.82182077]
[1763351948628,0.86,140.54,140.52,1.82182077]
[1763351948808,0.86,140.54,140.53,1.82182077]
[1763351956643,0.86,140.54,140.48,15.30744095]
[1763351956929,0.7,140.53,140.47,5.95433425]
[1763351957108,2.52182077,140.53,140.48,1.82182077]
[1763351957645,0.7,140.52,140.48,1.82182077]
[1763351958613,2.52182077,140.52,140.47,1.82182077]
[1763351958818,12.31064846,140.51,140.46,1.82182077]
[1763351959003,2.52182077,140.5,140.45,1.82182077]
[1763351959203,1.82182077,140.49,140.43,17.1]
[1763351959428,2.52182077,140.49,140.44,1.82182077]
[1763351959650,2.52182077,140.48,140.43,18.92182077]
[1763351960113,0.7,140.47,140.43,18.92182077]
[1763351960708,0.7,140.47,140.44,1.82182077]
[1763351962920,0.7,140.47,140.44,2.84623542]
[1763351971056,0.71,140.49,140.46,2.84623542]
[1763351971237,12.63506311,140.51,140.46,2.84623542]
[1763351971238,0.71,140.48,140.46,2.84623542]
[1763351971749,0.71,140.48,140.47,2.84623542]
[1763351975057,0.71,140.48,140.46,2.84623542]
[1763351983656,0.71,140.48,140.45,2.84623542]
[1763351984058,3.55623542,140.48,140.42,5.95433425]
[1763351984272,3.55623542,140.48,140.4,8.53865593]
[1763351984273,3.55623542,140.48,140.44,2.84623542]
[1763351984477,0.71,140.47,140.44,2.84623542]
[1763351986078,0.71,140.47,140.45,2.84623542]
[1763351993202,104.2,140.52,140.46,2.84623542]
[1763351993402,0.71,140.52,140.5,2.84623542]
[1763351995492,0.71,140.52,140.51,2.84623542]
[1763351997298,0.91,140.54,140.51,2.84623542]
[1763351997498,0.91,140.54,140.52,2.84623542]
[1763351997693,0.71,140.53,140.52,2.84623542]
[1763351998303,0.71,140.53,140.48,6.64433425]
[1763351998497,0.2,140.54,140.46,38.53908515]
[1763351998498,0.2,140.54,140.52,2.84623542]
[1763351998701,0.91,140.54,140.53,2.84623542]
[1763352000704,0.2,140.54,140.51,23.3412]
[1763352000896,0.2,140.54,140.53,2.84623542]
[1763352001300,0.86,140.54,140.53,2.84623542]
[1763352001609,0.2,140.54,140.53,3.50623542]
[1763352002125,0.2,140.54,140.53,2.84623542]
[1763352002690,0.2,140.54,140.53,3.50623542]
[1763352002913,0.2,140.54,140.53,26.15743542]
[1763352003290,0.2,140.54,140.53,29.26553425]
[1763352003489,0.2,140.54,140.53,26.15743542]
[1763352005513,0.2,140.54,140.53,29.00938365]
[1763352005694,0.2,140.54,140.53,34.9637179]
[1763352006398,0.2,140.57,140.53,52.79177481]
[1763352006593,0.2,140.57,140.56,25.49743542]
[1763352006904,0.2,140.57,140.56,26.15743542]
[1763352007301,0.2,140.57,140.56,22.6512]
[1763352007509,0.86,140.57,140.56,25.49743542]
[1763352007692,0.2,140.57,140.56,25.49743542]
[1763352008215,0.2,140.57,140.56,26.15743542]
[1763352009924,0.2,140.57,140.56,31.85500918]
[1763352010128,0.2,140.6,140.59,22.6512]
[1763352010435,0.2,140.6,140.59,2.84623542]
[1763352010732,0.2,140.61,140.6,12.63506311]
[1763352011017,0.66,140.67,140.66,2.84623542]
[1763352011715,0.66,140.67,140.65,2.84623542]
[1763352012321,0.66,140.67,140.66,2.84623542]
[1763352013789,0.66,140.67,140.65,2.84623542]
[1763352015115,0.66,140.67,140.63,22.6512]
[1763352015419,0.66,140.67,140.66,2.84623542]
[1763352015796,0.66,140.67,140.63,22.6512]
[1763352016020,0.66,140.67,140.63,25.49743542]
[1763352016328,0.66,140.67,140.65,2.84623542]
[1763352017123,0.66,140.67,140.63,22.6512]
[1763352017306,0.66,140.67,140.64,2.84623542]
[1763352018696,0.66,140.67,140.65,2.84623542]
[1763352018892,0.66,140.67,140.66,2.84623542]
[1763352021119,0.2,140.68,140.66,2.84623542]
[1763352021333,0.2,140.68,140.67,2.84623542]
[1763352021696,0.92,140.68,140.67,2.84623542]
[1763352022198,0.92,140.68,140.63,22.6512]
[1763352022416,0.2,140.68,140.67,2.84623542]
[1763352022623,0.2,140.68,140.66,2.84623542]
[1763352022813,0.72,140.67,140.66,2.84623542]
[1763352024011,0.2,140.68,140.66,2.84623542]
[1763352024212,0.2,140.68,140.67,2.84623542]
[1763352024800,0.2,140.68,140.67,1.81523261]
[1763352025017,0.92,140.68,140.67,1.81523261]
[1763352025410,0.2,140.68,140.67,24.46643261]
[1763352026124,0.2,140.68,140.67,24.99643261]
[1763352026626,0.2,140.68,140.67,2.34523261]
[1763352027239,0.2,140.68,140.67,24.46643261]
[1763352027407,0.2,140.68,140.67,1.81523261]
[1763352027612,0.2,140.68,140.67,2.34523261]
[1763352028517,0.2,140.69,140.67,32.25736305]
[1763352028812,0.2,140.69,140.68,24.99643261]
[1763352030205,0.2,140.69,140.68,1.81523261]
[1763352031204,0.92,140.69,140.68,1.81523261]
[1763352032519,0.92,140.69,140.67,1.81523261]
[1763352032709,0.72,140.68,140.67,1.81523261]
[1763352034210,0.72,140.68,140.64,22.6512]
[1763352034529,0.72,140.68,140.67,1.81523261]
[1763352034752,0.72,140.68,140.63,9.74873086]
[1763352034932,0.72,140.68,140.61,2.85032244]
[1763352035112,0.72,140.68,140.64,1.81523261]
[1763352035435,2.53523261,140.68,140.61,2.85032244]
[1763352035652,1.81523261,140.67,140.59,9.74873086]
[1763352035810,0.72,140.66,140.59,9.74873086]
[1763352036009,0.72,140.66,140.62,1.81523261]
[1763352036539,0.72,140.66,140.59,32.92993086]
[1763352036842,0.72,140.66,140.63,1.81523261]
[1763352037546,0.72,140.66,140.65,1.81523261]
[1763352038215,0.72,140.68,140.65,1.81523261]
[1763352038411,0.72,140.68,140.67,1.81523261]
[1763352040073,0.72,140.68,140.66,1.81523261]
[1763352040253,0.72,140.68,140.64,22.6512]
[1763352040451,0.72,140.68,140.65,1.81523261]
[1763352040654,0.72,140.68,140.63,1.81523261]
[1763352040655,2.53523261,140.68,140.63,1.81523261]
[1763352041052,0.72,140.67,140.63,1.81523261]
[1763352041875,0.72,140.67,140.62,22.6512]
[1763352042039,0.72,140.67,140.63,1.81523261]
[1763352042234,2.53523261,140.67,140.62,1.81523261]
[1763352042637,0.72,140.66,140.62,1.81523261]
[1763352044062,2.53523261,140.66,140.61,1.81523261]
[1763352044376,33.16002769,140.66,140.57,5.95433425]
[1763352044536,1.81523261,140.64,140.59,1.81523261]
[1763352044878,1.81523261,140.63,140.56,39.7312]
[1763352045033,1.81523261,140.62,140.58,1.81523261]
[1763352045233,1.81523261,140.63,140.58,1.81523261]
[1763352045647,0.72,140.62,140.59,1.81523261]
[1763352046235,0.72,140.62,140.6,1.81523261]
[1763352047168,0.72,140.64,140.61,1.81523261]
[1763352047578,0.72,140.64,140.6,1.81523261]
[1763352048583,25.18643261,140.64,140.59,1.81523261]
[1763352048767,1.81523261,140.63,140.59,1.81523261]
[1763352048971,2.53523261,140.63,140.59,1.81523261]
[1763352049269,0.72,140.62,140.59,1.81523261]
[1763352049653,0.72,140.62,140.58,1.81523261]
[1763352050045,2.53523261,140.62,140.56,17.08]
[1763352050351,0.72,140.62,140.59,1.81523261]
[1763352050667,0.72,140.61,140.56,17.08]
[1763352050877,0.72,140.61,140.59,1.81523261]
[1763352051858,0.72,140.66,140.6,2.34523261]
[1763352052169,0.72,140.66,140.65,1.81523261]
[1763352054085,0.72,140.66,140.6,21.37894174]
[1763352054242,0.72,140.66,140.62,1.81523261]
[1763352054642,2.53523261,140.66,140.61,1.81523261]
[1763352055069,0.72,140.65,140.62,1.81523261]
[1763352056364,0.72,140.65,140.63,1.81523261]
[1763352058544,0.72,140.65,140.62,1.81523261]
[1763352059157,0.72,140.65,140.58,28.60553425]
[1763352059353,2.53523261,140.65,140.6,1.81523261]
[1763352059762,0.72,140.64,140.6,1.81523261]
[1763352061344,2.53523261,140.64,140.6,1.81523261]
[1763352061771,0.7,140.63,140.6,1.81523261]
[1763352062462,2.51523261,140.63,140.58,1.81523261]
[1763352062973,0.7,140.62,140.59,1.81523261]
[1763352063177,0.7,140.62,140.58,1.81523261]
[1763352064085,0.7,140.62,140.56,22.6512]
[1763352064261,2.51523261,140.62,140.57,1.81523261]
[1763352064469,2.51523261,140.61,140.56,1.81523261]
[1763352064693,0.7,140.61,140.58,1.81523261]
[1763352064990,0.7,140.61,140.59,1.81523261]
[1763352065776,0.7,140.61,140.58,1.81523261]
[1763352069875,2.51523261,140.61,140.56,1.81523261]
[1763352070289,0.7,140.6,140.56,1.81523261]
[1763352071609,1.81523261,140.63,140.58,1.81523261]
[1763352071775,0.7,140.65,140.58,7.26093044]
[1763352071978,0.7,140.65,140.63,1.81523261]
[1763352073897,0.7,140.65,140.62,1.81523261]
[1763352076293,104.2,140.67,140.64,1.81523261]
[1763352076480,0.7,140.68,140.66,1.81523261]
[1763352077607,0.7,140.68,140.67,1.81523261]
[1763352077789,0.2,140.69,140.67,1.81523261]
[1763352077997,0.2,140.69,140.68,1.81523261]
[1763352078690,0.86,140.69,140.64,23.1812]
[1763352078895,0.86,140.69,140.67,1.81523261]
[1763352079292,0.2,140.69,140.67,1.81523261]
[1763352079820,0.86,140.69,140.67,1.81523261]
[1763352080606,0.66,140.68,140.67,1.81523261]
[1763352080808,0.66,140.68,140.65,1.81523261]
[1763352081016,0.66,140.68,140.64,1.81523261]
[1763352081393,12.2640603,140.68,140.63,1.81523261]
[1763352081911,0.66,140.67,140.63,1.81523261]
[1763352082281,0.86,140.69,140.66,1.81523261]
[1763352082485,0.66,140.68,140.66,1.81523261]
[1763352084017,0.2,140.69,140.67,1.81523261]
[1763352084192,0.2,140.69,140.68,1.81523261]
[1763352084814,0.2,140.69,140.68,2.83593372]
[1763352086209,0.86,140.69,140.68,2.83593372]
[1763352086414,0.86,140.69,140.67,2.83593372]
[1763352086810,0.2,140.69,140.68,2.83593372]
[1763352087222,0.86,140.69,140.67,2.83593372]
[1763352087798,0.2,140.69,140.67,2.83593372]
[1763352088207,0.2,140.69,140.68,3.36593372]
[1763352090326,0.2,140.69,140.68,2.83593372]
[1763352090714,0.2,140.69,140.68,3.36593372]
[1763352090913,0.2,140.69,140.68,8.42983152]
[1763352091101,0.2,140.69,140.68,7.89983152]
[1763352091705,0.88,140.69,140.67,7.89983152]
[1763352091909,0.2,140.69,140.68,7.89983152]
[1763352092832,0.2,140.69,140.68,8.42983152]
[1763352093218,0.2,140.69,140.68,7.89983152]
[1763352093726,0.2,140.69,140.66,0.53]
[1763352093906,0.2,140.69,140.68,7.89983152]
[1763352094102,0.88,140.69,140.65,22.6512]
[1763352094409,0.2,140.69,140.68,7.89983152]
[1763352095611,0.88,140.69,140.68,7.89983152]
[1763352096013,0.88,140.69,140.67,7.89983152]
[1763352097038,0.88,140.69,140.68,7.89983152]
[1763352099734,0.2,140.69,140.68,7.89983152]
[1763352100534,0.2,140.69,140.68,8.42983152]
[1763352100842,0.2,140.69,140.68,7.89983152]
[1763352105122,0.88,140.69,140.66,22.6512]
[1763352105335,0.88,140.69,140.68,7.89983152]
[1763352106046,0.88,140.69,140.66,22.6512]
[1763352106341,0.68,140.68,140.67,7.89983152]
[1763352106725,0.68,140.68,140.64,23.1812]
[1763352106938,0.68,140.68,140.67,7.89983152]
[1763352107632,0.68,140.68,140.65,30.55103152]
[1763352107954,0.68,140.68,140.61,27.43739007]
[1763352107955,8.57983152,140.68,140.61,9.74873086]
[1763352108141,8.57983152,140.68,140.63,7.89983152]
[1763352108316,0.68,140.67,140.64,7.89983152]
[1763352108925,0.68,140.67,140.61,0.53]
[1763352109128,0.68,140.67,140.64,7.89983152]
[1763352110036,8.57983152,140.67,140.6,22.6512]
[1763352110238,8.57983152,140.67,140.62,7.89983152]
[1763352110538,0.68,140.66,140.62,7.89983152]
[1763352111249,8.57983152,140.66,140.61,7.89983152]
[1763352111725,8.57983152,140.65,140.6,7.89983152]
[1763352112161,0.68,140.64,140.61,7.89983152]
[1763352112926,0.68,140.64,140.61,2.8393879]
[1763352113658,0.68,140.64,140.6,2.8393879]
[1763352114359,0.68,140.64,140.61,2.8393879]
[1763352114553,0.68,140.64,140.62,2.8393879]
[1763352115753,0.68,140.64,140.58,31.97492215]
[1763352115959,0.68,140.64,140.62,2.8393879]
[1763352116260,0.68,140.64,140.58,31.97492215]
[1763352116261,0.68,140.64,140.63,2.8393879]
[1763352117557,0.68,140.64,140.6,0.53]
[1763352117749,0.68,140.64,140.63,2.8393879]
[1763352118160,0.68,140.67,140.63,2.8393879]
[1763352118334,0.68,140.67,140.64,2.8393879]
[1763352118534,0.68,140.67,140.65,2.8393879]
[1763352118752,0.68,140.67,140.6,5.95433425]
[1763352118753,0.68,140.67,140.63,2.8393879]
[1763352119067,3.5193879,140.67,140.62,2.8393879]
[1763352119270,2.8393879,140.66,140.61,2.8393879]
[1763352119447,3.5193879,140.66,140.61,2.8393879]
[1763352119766,0.68,140.65,140.62,2.8393879]
[1763352120354,0.68,140.65,140.59,0.53]
[1763352120355,0.68,140.65,140.63,2.8393879]
[1763352121853,25.4905879,140.68,140.61,0.53]
[1763352122157,0.66,140.66,140.63,2.8393879]
[1763352123747,0.66,140.66,140.64,2.8393879]
[1763352124747,0.66,140.68,140.65,2.8393879]
[1763352125469,0.66,140.68,140.67,2.8393879]
[1763352125657,0.2,140.69,140.65,0.53]
[1763352125968,0.86,140.69,140.67,2.8393879]
[1763352126572,0.66,140.68,140.62,5.95433425]
[1763352126744,12.62821559,140.67,140.62,2.8393879]
[1763352126948,9.78882769,140.67,140.63,2.8393879]
[1763352127158,0.66,140.66,140.63,2.8393879]